fUSD/lending_fUSD_20260225
["ID","MTS","AMOUNT","RATE_DAILY","PERIOD"]
[406646975,1772029501210,300.0,6.572e-05,2]
[406646976,1772029501241,300.0,6.572e-05,2]
[406646977,1772029501272,190.32517889,6.572e-05,2]
[406646978,1772029501294,1009.67482111,6.572e-05,2]
[406646979,1772029526738,257.36694383,6.572e-05,2]
[406646980,1772029536497,500.0,6.572e-05,2]
[406646981,1772029536551,500.0,6.572e-05,2]
[406646982,1772029538954,476.4288,6.473e-05,2]
[406646983,1772029545140,225.80904997,6.572e-05,2]
[406646984,1772029551454,563.63148188,6.572e-05,2]
[406646986,1772029552932,500.0,6.572e-05,2]
[406646987,1772029552992,500.0,6.572e-05,2]
[406646988,1772029553047,617.38329837,6.572e-05,2]
[406646989,1772029554367,500.0,6.572e-05,2]
[406646990,1772029554422,647.82047005,6.572e-05,2]
[406646992,1772029621209,300.0,6.572e-05,2]
[406646993,1772029622964,150.0,6.572e-05,2]
[406646994,1772029623139,300.0,6.572e-05,2]
[406647025,1772029667007,182.64,6.5e-05,2]
[406647026,1772029681253,300.0,6.572e-05,2]
[406647078,1772029778475,-5000.0,6.598e-05,2]
[406647079,1772029778513,-250.0,6.623e-05,2]
[406647080,1772029778543,-1000.0,6.671e-05,2]
[406647081,1772029778572,-208.0,6.673e-05,2]
[406647082,1772029778598,-250.0,6.709e-05,2]
[406647083,1772029778625,-300.0,6.8e-05,2]
[406647084,1772029778650,-500.0,6.873e-05,2]
[406647085,1772029778674,-500.0,6.873e-05,2]
[406647086,1772029778705,-500.0,6.873e-05,2]
[406647087,1772029778730,-500.0,6.873e-05,2]
[406647088,1772029778754,-500.0,6.873e-05,2]
[406647089,1772029778778,-500.0,6.873e-05,2]
[406647090,1772029778801,-500.0,6.873e-05,2]
[406647091,1772029778830,-500.36500922,6.873e-05,2]
[406647092,1772029778858,-500.0,6.873e-05,2]
[406647093,1772029778885,-307.71196301,6.873e-05,2]
[406647094,1772029778910,-500.0,6.873e-05,2]
[406647095,1772029778934,-170.35126783,6.873e-05,2]
[406647096,1772029778958,-500.0,6.873e-05,2]
[406647097,1772029778983,-503.193534,6.873e-05,2]
[406647098,1772029779008,-500.0,6.873e-05,2]
[406647099,1772029779034,-500.0,6.873e-05,2]
[406647100,1772029779058,-500.0,6.873e-05,2]
[406647101,1772029779083,-500.0,6.873e-05,2]
[406647102,1772029779110,-500.0,6.873e-05,2]
[406647103,1772029779139,-500.0,6.873e-05,2]
[406647104,1772029779165,-500.0,6.873e-05,2]
[406647105,1772029779190,-500.66363066,6.873e-05,2]
[406647106,1772029779219,-500.0,6.873e-05,2]
[406647107,1772029779244,-500.0,6.873e-05,2]
[406647108,1772029779270,-502.53914278,6.873e-05,2]
[406647109,1772029779297,-500.0,6.873e-05,2]
[406647110,1772029779322,-500.27479094,6.873e-05,2]
[406647111,1772029779350,-6.90066156,6.873e-05,2]
[406647146,1772029813763,-500.0,6.873e-05,2]
[406647147,1772029813785,-353.84933844,6.873e-05,2]
[406647148,1772029813809,-600.0,6.9e-05,2]
[406647149,1772029813836,-46.15066156,6.9e-05,2]
[406647165,1772029832264,-500.0,6.873e-05,2]
[406647166,1772029832274,-500.0,6.873e-05,2]
[406647167,1772029832283,-500.0,6.873e-05,2]
[406647168,1772029832292,-500.0,6.873e-05,2]
[406647169,1772029832301,-577.7227958,6.873e-05,2]
[406647170,1772029832310,-514.56546432,6.873e-05,2]
[406647171,1772029832319,-500.0,6.873e-05,2]
[406647172,1772029832328,-500.0,6.873e-05,2]
[406647173,1772029832337,-162.84933844,6.9e-05,2]
[406647174,1772029832346,-250.0,6.928e-05,2]
[406647175,1772029832355,-654.12033099,6.956e-05,2]
[406647176,1772029832364,-316.55461374,7e-05,2]
[406647177,1772029832379,-583.44538626,7e-05,2]
[406647179,1772029832390,-240.19561374,7.147e-05,2]
[406647181,1772029832401,-120.55438626,7.147e-05,2]
[406647182,1772029832414,-1200.0,7.228e-05,2]
[406647183,1772029832424,-300.0,7.229e-05,2]
[406647184,1772029832433,-300.0,7.229e-05,2]
[406647185,1772029832442,-175.0,7.229e-05,2]
[406647186,1772029832452,-250.0,7.23e-05,2]
[406647187,1772029832462,-5000.0,7.23e-05,2]
[406647188,1772029832471,-193.0,7.23e-05,2]
[406647189,1772029832485,-150.0,7.338e-05,2]
[406647190,1772029832495,-150.99,7.339e-05,2]
[406647191,1772029832506,-999.99,7.339e-05,2]
[406647192,1772029832519,-9999.99,7.339e-05,2]
[406647193,1772029832528,-150.99,7.339e-05,2]
[406647194,1772029832729,-1307.0,7.339e-05,2]
[406647195,1772029832739,-299.99,7.339e-05,2]
[406647196,1772029832749,-3500.55,7.339e-05,2]
[406647197,1772029832758,-3663.07,7.339e-05,2]
[406647198,1772029832770,-940.69410624,7.421e-05,2]
[406647199,1772029832779,-1096.18978779,7.421e-05,2]
[406647200,1772029832788,-1000.0,7.421e-05,2]
[406647201,1772029832798,-501.75629018,7.421e-05,2]
[406647202,1772029832807,-500.0,7.421e-05,2]
[406647203,1772029832817,-500.99420847,7.421e-05,2]
[406647204,1772029832827,-500.0,7.421e-05,2]
[406647205,1772029832840,-455.37248611,7.421e-05,2]
[406647206,1772029832850,-501.82753949,7.421e-05,2]
[406647207,1772029832859,-1000.0,7.421e-05,2]
[406647208,1772029832868,-1000.0,7.421e-05,2]
[406647209,1772029832878,-360.75,7.421e-05,2]
[406647210,1772029832887,-1270.2674022,7.428e-05,2]
[406647211,1772029832896,-250.0,7.59e-05,2]
[406647212,1772029832907,-360.75,7.695e-05,2]
[406647213,1772029832916,-462.65,7.841e-05,2]
[406647214,1772029832925,-257.43863739,7.852e-05,2]
[406647215,1772029832937,-1594.98136261,7.852e-05,2]
[406647216,1772029832947,-1680.0,7.951e-05,2]
[406647217,1772029832956,-420.0,7.952e-05,2]
[406647218,1772029832965,-360.79,7.968e-05,2]
[406647219,1772029832976,-500.0,7.968e-05,2]
[406647220,1772029832986,-1500.0,7.968e-05,2]
[406647221,1772029832996,-1500.0,7.968e-05,2]
[406647222,1772029833005,-255.0,8.072e-05,2]
[406647223,1772029833015,-12868.68,8.146e-05,2]
[406647224,1772029833024,-4500.478526,8.178e-05,2]
[406647225,1772029833033,-500.0,8.219e-05,2]
[406647226,1772029833043,-500.0,8.219e-05,2]
[406647227,1772029833052,-119.80093694,8.219e-05,2]
[406647240,1772029838344,-90.69732606,8.219e-05,2]
[406647241,1772029838355,-500.0,8.274e-05,2]
[406647242,1772029838365,-500.0,8.274e-05,2]
[406647243,1772029838375,-500.0,8.329e-05,2]
[406647244,1772029838384,-500.0,8.329e-05,2]
[406647245,1772029838394,-1886.41447341,8.371e-05,2]
[406647246,1772029838404,-500.0,8.383e-05,2]
[406647247,1772029838414,-500.0,8.383e-05,2]
[406647248,1772029838423,-500.0,8.438e-05,2]
[406647249,1772029838433,-500.0,8.438e-05,2]
[406647250,1772029838442,-2183.52,8.456e-05,2]
[406647251,1772029838452,-387.0,8.493e-05,2]
[406647252,1772029838462,-500.0,8.493e-05,2]
[406647253,1772029838471,-2000.0,8.516e-05,2]
[406647254,1772029838486,-500.0,8.548e-05,2]
[406647255,1772029838496,-500.0,8.603e-05,2]
[406647256,1772029838506,-500.0,8.657e-05,2]
[406647257,1772029838516,-500.0,8.712e-05,2]
[406647258,1772029838527,-250.0,8.718e-05,2]
[406647259,1772029838537,-2351.0,8.746e-05,2]
[406647260,1772029838547,-587.0,8.747e-05,2]
[406647261,1772029838557,-500.0,8.767e-05,2]
[406647263,1772029838567,-500.0,8.822e-05,2]
[406647265,1772029838576,-352.01719171,8.877e-05,2]
[406647267,1772029838586,-433.0,8.879e-05,2]
[406647269,1772029838597,-5000.0,9e-05,2]
[406647271,1772029838607,-2500.0,9.064e-05,2]
[406647273,1772029838618,-263.122828,9.084e-05,2]
[406647275,1772029838628,-59527.24404055,9.134e-05,2]
[406647277,1772029838638,-500.0,9.15e-05,2]
[406647279,1772029838648,-500.0,9.424e-05,2]
[406647281,1772029838658,-2500.0,9.612e-05,2]
[406647283,1772029838668,-3292.0,9.62e-05,2]
[406647285,1772029838679,-823.0,9.622e-05,2]
[406647287,1772029838688,-23801.11,9.67e-05,2]
[406647289,1772029838698,-9999.99,9.67e-05,2]
[406647291,1772029838707,-642.57522524,9.698e-05,2]
[406647293,1772029838717,-702.0,9.767e-05,2]
[406647295,1772029838726,-2653.01730754,9.786e-05,2]
[406647297,1772029838741,-295.729192,0.0001,2]
[406647308,1772029838925,-151.0,0.0001,2]
[406647309,1772029838943,-151.0,0.0001,2]
[406647310,1772029838953,-151.0,0.0001,2]
[406647311,1772029838963,-151.0,0.0001,2]
[406647312,1772029838973,-151.0,0.0001,2]
[406647313,1772029838985,-151.0,0.0001,2]
[406647314,1772029838994,-151.0,0.0001,2]
[406647316,1772029839003,-151.0,0.0001,2]
[406647317,1772029839013,-151.0,0.0001,2]
[406647320,1772029839023,-151.0,0.0001,2]
[406647321,1772029839033,-151.0,0.0001,2]
[406647322,1772029839043,-151.0,0.0001,2]
[406647323,1772029839053,-176.95308782,0.0001,2]
[406647324,1772029839063,-1967.31764889,0.0001,2]
[406647325,1772029839072,-191.48797909,0.0001,2]
[406647326,1772029839081,-153.19038327,0.0001,2]
[406647327,1772029839091,-153.19038327,0.0001,2]
[406647328,1772029839101,-270.19418044,0.0001,2]
[406647329,1772029839111,-150.0,0.00010391,2]
[406647330,1772029839121,-1277.0,0.00010391,2]
[406647331,1772029839131,-1210.0,0.00010391,2]
[406647332,1772029839140,-920.0,0.00010391,2]
[406647333,1772029839149,-5982.0,0.00010391,2]
[406647334,1772029839158,-1340.0,0.00010391,2]
[406647335,1772029839168,-4609.0,0.00010583,2]
[406647336,1772029839178,-1152.0,0.00010584,2]
[406647337,1772029839187,-3118.70861584,0.0001073,2]
[406647338,1772029839196,-150.0,0.00010959,2]
[406647339,1772029839206,-9943.67403011,0.00010999,2]
[406647340,1772029839215,-9458.15581866,0.00011,2]
[406647341,1772029839225,-15535.65272246,0.00011099,2]
[406647342,1772029839240,-15535.6527224,0.00011099,2]
[406647343,1772029839250,-15535.6527224,0.00011099,2]
[406647344,1772029839263,-15535.6527224,0.00011099,2]
[406647345,1772029839272,-12830.3258183,0.00011099,2]
[406647346,1772029839282,-12830.32581828,0.00011099,2]
[406647347,1772029839292,-12830.32581828,0.00011099,2]
[406647348,1772029839301,-12830.32581828,0.00011099,2]
[406647349,1772029839311,-3908.35,0.00011233,2]
[406647350,1772029839320,-315.747394,0.00011355,2]
[406647351,1772029839330,-300.0,0.00011447,4]
[406647352,1772029839341,-150.0,0.00011541,7]
[406647353,1772029839355,-12830.32581828,0.00011566,2]
[406647354,1772029839364,-15535.6527224,0.00011579,2]
[406647355,1772029839373,-2382.0,0.00011641,2]
[406647356,1772029839382,-1613.0,0.00011642,2]
[406647357,1772029839391,-2887.0,0.000118,5]
[406647358,1772029839401,-9943.67403006,0.00011985,2]
[406647359,1772029839410,-6420.29141849,0.00012006,2]
[406647360,1772029839421,-295.729192,0.00012237,2]
[406647361,1772029839430,-2258.0,0.00012806,2]
[406647362,1772029839439,-12830.32581828,0.00012832,2]
[406647363,1772029839448,-15535.6527224,0.00012844,2]
[406647364,1772029839457,-1097.110632,0.00012845,2]
[406647365,1772029839467,-9943.67403006,0.00012971,2]
[406647366,1772029839477,-5367.58631391,0.0001305,2]
[406647367,1772029839488,-173.91437885,0.00013155,2]
[406647368,1772029839498,-160.0,0.00013155,2]
[406647369,1772029839508,-12344.50095957,0.00013381,2]
[406647370,1772029839517,-1277.0,0.00013391,2]
[406647371,1772029839527,-1210.0,0.00013391,2]
[406647372,1772029839536,-920.0,0.00013391,2]
[406647373,1772029839545,-5982.0,0.00013391,2]
[406647374,1772029839554,-1340.0,0.00013391,2]
[406647375,1772029839564,-3240.0,0.00013425,2]
[406647376,1772029839574,-1000.0,0.000135,2]
[406647377,1772029839584,-14928.40764489,0.0001358,2]
[406647378,1772029839594,-256.9395,0.00013698,2]
[406647379,1772029839603,-500.0,0.00013698,2]
[406647380,1772029839613,-261.64372905,0.00013698,2]
[406647381,1772029839624,-500.0,0.00013698,2]
[406647382,1772029839634,-500.0,0.00013698,2]
[406647383,1772029839644,-500.0,0.00013698,2]
[406647384,1772029839653,-500.0,0.00013698,2]
[406647385,1772029839662,-500.0,0.00013698,2]
[406647386,1772029839673,-500.0,0.00013698,2]
[406647387,1772029839684,-500.0,0.00013698,2]
[406647388,1772029839694,-500.0,0.00013698,2]
[406647389,1772029839703,-500.0,0.00013698,2]
[406647390,1772029839712,-500.0,0.00013698,2]
[406647391,1772029839722,-500.0,0.00013698,2]
[406647392,1772029839731,-500.0,0.00013698,2]
[406647393,1772029839741,-500.0,0.00013698,2]
[406647394,1772029839750,-500.0,0.00013698,2]
[406647395,1772029839760,-500.0,0.00013698,2]
[406647396,1772029839770,-500.0,0.00013698,2]
[406647397,1772029839779,-500.0,0.00013698,2]
[406647398,1772029839788,-500.0,0.00013698,2]
[406647399,1772029839799,-500.0,0.00013698,2]
[406647400,1772029839808,-500.0,0.00013698,2]
[406647401,1772029839817,-500.0,0.00013698,2]
[406647402,1772029839828,-500.0,0.00013698,2]
[406647403,1772029839841,-459.6206657,0.00013698,2]
[406647404,1772029839850,-500.0,0.00013698,2]
[406647405,1772029839860,-500.0,0.00013698,2]
[406647406,1772029839870,-500.0,0.00013698,2]
[406647407,1772029839879,-500.0,0.00013698,2]
[406647408,1772029839889,-500.0,0.00013698,2]
[406647409,1772029839899,-500.0,0.00013698,2]
[406647410,1772029839910,-500.0,0.00013698,2]
[406647411,1772029839920,-476.47320889,0.00013698,2]
[406647412,1772029839929,-500.0,0.00013698,2]
[406647413,1772029839939,-563.9784206,0.00013698,2]
[406647414,1772029839949,-200.0,0.00013699,2]
[406647415,1772029839960,-305.29644962,0.00013699,2]
[406647416,1772029839970,-172.10662643,0.00013699,2]
[406647418,1772029839982,-500.0,0.00013699,2]
[406647419,1772029839992,-22028.84909328,0.00013777,2]
[406647421,1772029840002,-1300.0,0.000139,5]
[406647422,1772029840011,-9943.67403006,0.00013957,2]
[406647423,1772029840021,-3162.0,0.00014087,2]
[406647424,1772029840031,-12830.32581828,0.00014099,2]
[406647425,1772029840041,-15535.6527224,0.00014108,2]
[406647426,1772029840051,-1000.0,0.00014247,2]
[406647427,1772029840060,-457.82,0.00014434,2]
[406647428,1772029840070,-482.68275809,0.00014482,2]
[406647429,1772029840079,-482.68275809,0.00014482,2]
[406647430,1772029840087,-482.68275809,0.00014482,2]
[406647431,1772029840097,-482.68275809,0.00014482,2]
[406647432,1772029840106,-482.68275809,0.00014482,2]
[406647433,1772029840116,-482.68275809,0.00014482,2]
[406647434,1772029840126,-482.68275809,0.00014482,2]
[406647435,1772029840135,-482.68275809,0.00014482,2]
[406647436,1772029840145,-482.68275809,0.00014482,2]
[406647437,1772029840155,-482.68275809,0.00014482,2]
[406647438,1772029840164,-482.68275809,0.00014482,2]
[406647439,1772029840174,-482.68275809,0.00014482,2]
[406647440,1772029840184,-482.68275809,0.00014482,2]
[406647441,1772029840194,-482.68275809,0.00014482,2]
[406647442,1772029840203,-482.68275809,0.00014482,2]
[406647443,1772029840214,-482.68275809,0.00014482,2]
[406647444,1772029840224,-482.68275809,0.00014482,2]
[406647445,1772029840235,-482.68275809,0.00014482,2]
[406647446,1772029840245,-482.68275805,0.00014482,2]
[406647447,1772029840255,-457.82,0.00014537,2]
[406647448,1772029840264,-457.82,0.0001464,2]
[406647449,1772029840275,-457.82,0.00014743,2]
[406647450,1772029840284,-1500.0,0.00014795,2]
[406647451,1772029840294,-457.82,0.00014846,2]
[406647452,1772029840305,-457.82,0.00014949,2]
[406647453,1772029840315,-1982.35241964,0.00015,7]
[406647454,1772029840324,-2642.79475098,0.00015,14]
[406647456,1772029840334,-505.0,0.00015,2]
[406647457,1772029840344,-457.82,0.00015052,2]
[406647459,1772029840353,-823.45,0.00015068,2]
[406647462,1772029840363,-263.122828,0.0001514,7]
[406647464,1772029840372,-457.86295333,0.00015155,2]
[406647466,1772029840382,-1739.2674383,0.00015276,2]
[406647467,1772029840391,-313.38177285,0.00015342,2]
[406647468,1772029840401,-12830.32581828,0.00015366,2]
[406647469,1772029840411,-15535.6527224,0.00015372,2]
[406647471,1772029840420,-500.0,0.00015404,2]
[406647472,1772029840430,-289.87790638,0.00015413,2]
[406647474,1772029840439,-908.0,0.00015496,2]
[406647476,1772029840447,-289.87790638,0.00015566,2]
[406647477,1772029840457,-277.35679052,0.00015608,2]
[406647478,1772029840467,-289.87790638,0.00015718,2]
[406647479,1772029840477,-300.0,0.00015764,4]
[406647480,1772029840488,-924.0,0.000158,2]
[406647481,1772029840498,-500.0,0.00015889,2]
[406647482,1772029840508,-5027.46257889,0.0001596,2]
[406647483,1772029840517,-287.61899177,0.00016156,2]
[406647484,1772029840527,-666.0,0.00016199,2]
[406647485,1772029840540,-53328.11467097,0.000162,5]
[406647486,1772029840550,-1277.0,0.00016391,2]
[406647487,1772029840559,-1210.0,0.00016391,2]
[406647488,1772029840568,-920.0,0.00016391,2]
[406647489,1772029840578,-5982.0,0.00016391,2]
[406647490,1772029840587,-1340.0,0.00016391,2]
[406647491,1772029840597,-150.01,0.00016406,2]
[406647492,1772029840606,-2214.4,0.00016438,2]
[406647493,1772029840615,-823.45,0.00016438,2]
[406647494,1772029840625,-12830.32581828,0.00016633,2]
[406647495,1772029840635,-15535.6527224,0.00016636,2]
[406647496,1772029840644,-298.26089446,0.00016704,2]
[406647497,1772029840654,-505.0,0.00016711,3]
[406647498,1772029840663,-2214.4,0.00016712,2]
[406647499,1772029840674,-175.5669966,0.0001681,3]
[406647500,1772029840683,-2214.4,0.00016986,2]
[406647501,1772029840693,-32158.97035652,0.00017,2]
[406647502,1772029840703,-8260.0,0.00017003,2]
[406647503,1772029840713,-604.78013772,0.00017041,2]
[406647504,1772029840723,-664.65,0.000171,2]
[406647505,1772029840734,-233.84633691,0.00017123,2]
[406647506,1772029840744,-160.67,0.00017159,2]
[406647507,1772029840754,-1183.3063987,0.00017178,2]
[406647508,1772029840763,-350.0,0.00017218,2]
[406647509,1772029840772,-350.0,0.00017234,2]
[406647510,1772029840782,-309.29654756,0.00017252,2]
[406647511,1772029840792,-2214.4,0.0001726,2]
[406647512,1772029840801,-1600.0,0.000173,6]
[406647513,1772029840810,-300.0,0.000174,6]
[406647514,1772029840820,-300.0,0.000175,6]
[406647515,1772029840837,-350.0,0.00017509,2]
[406647516,1772029840846,-2214.4,0.00017534,2]
[406647517,1772029840856,-388.0,0.00017567,2]
[406647518,1772029840867,-300.0,0.000176,6]
[406647519,1772029840877,-1548.11367929,0.0001764,2]
[406647520,1772029840887,-296.0,0.0001767,2]
[406647521,1772029840898,-350.0,0.00017678,2]
[406647522,1772029840908,-300.0,0.000177,6]
[406647523,1772029840918,-344.07396868,0.00017708,2]
[406647524,1772029840928,-150.01,0.00017744,2]
[406647525,1772029840937,-350.0,0.00017759,2]
[406647526,1772029840947,-320.74051982,0.000178,2]
[406647527,1772029840956,-636.0,0.000178,6]
[406647528,1772029840966,-2214.4,0.00017808,2]
[406647529,1772029840975,-442.0,0.00017808,2]
[406647530,1772029840985,-823.70465006,0.00017808,2]
[406647531,1772029840995,-823.70465006,0.00017808,2]
[406647532,1772029841005,-823.70465006,0.00017808,2]
[406647533,1772029841014,-823.70465006,0.00017808,2]
[406647534,1772029841024,-823.70465006,0.00017808,2]
[406647535,1772029841035,-823.70465006,0.00017808,2]
[406647536,1772029841044,-823.70465006,0.00017808,2]
[406647537,1772029841054,-823.70465006,0.00017808,2]
[406647538,1772029841063,-823.70465006,0.00017808,2]
[406647539,1772029841073,-823.70465006,0.00017808,2]
[406647540,1772029841083,-823.70465006,0.00017808,2]
[406647541,1772029841092,-823.70465006,0.00017808,2]
[406647542,1772029841102,-823.70465006,0.00017808,2]
[406647543,1772029841112,-823.70465006,0.00017808,2]
[406647544,1772029841122,-823.70465006,0.00017808,2]
[406647545,1772029841132,-823.70465006,0.00017808,2]
[406647546,1772029841142,-823.70465006,0.00017808,2]
[406647547,1772029841152,-823.70465006,0.00017808,2]
[406647548,1772029841162,-823.70465006,0.00017808,2]
[406647549,1772029841172,-864.88988255,0.00017808,2]
[406647550,1772029841182,-864.88988255,0.00017808,2]
[406647551,1772029841192,-864.88988255,0.00017808,2]
[406647552,1772029841201,-864.88988255,0.00017808,2]
[406647553,1772029841211,-864.88988255,0.00017808,2]
[406647554,1772029841220,-864.88988255,0.00017808,2]
[406647555,1772029841232,-864.88988255,0.00017808,2]
[406647556,1772029841241,-864.88988255,0.00017808,2]
[406647557,1772029841251,-864.88988255,0.00017808,2]
[406647558,1772029841376,-864.88988255,0.00017808,2]
[406647559,1772029841387,-968.67666842,0.00017808,2]
[406647560,1772029841397,-1750.68247,0.0001782,2]
[406647561,1772029841407,-1750.68247,0.0001782,2]
[406647562,1772029841416,-376.0,0.00017845,2]
[406647563,1772029841426,-500.0,0.00017856,2]
[406647564,1772029841435,-200.0,0.00017856,2]
[406647565,1772029841445,-442.0,0.00017863,2]
[406647566,1772029841454,-10000.0,0.00017886,2]
[406647567,1772029841464,-1074.85815631,0.0001789,2]
[406647568,1772029841473,-500.0,0.00017899,2]
[406647569,1772029841483,-300.0,0.00017899,2]
[406647570,1772029841493,-300.0,0.00017899,2]
[406647571,1772029841502,-666.0,0.00017899,2]
[406647572,1772029841512,-261.91386714,0.00017899,3]
[406647573,1772029841521,-250.0,0.00017899,3]
[406647574,1772029841531,-250.0,0.00017899,3]
[406647575,1772029841540,-500.0,0.00017899,3]
[406647576,1772029841550,-250.0,0.00017899,3]
[406647577,1772029841559,-500.0,0.00017899,3]
[406647578,1772029841568,-250.0,0.00017899,3]
[406647579,1772029841578,-500.0,0.00017899,3]
[406647580,1772029841587,-250.0,0.00017899,3]
[406647581,1772029841596,-500.0,0.00017899,3]
[406647582,1772029841605,-500.0,0.00017899,3]
[406647583,1772029841615,-250.0,0.00017899,3]
[406647584,1772029841624,-500.0,0.00017899,3]
[406647585,1772029841633,-250.0,0.00017899,3]
[406647586,1772029841643,-500.0,0.00017899,3]
[406647587,1772029841652,-250.0,0.00017899,3]
[406647588,1772029841662,-500.0,0.00017899,3]
[406647589,1772029841671,-250.0,0.00017899,3]
[406647590,1772029841681,-500.0,0.00017899,3]
[406647591,1772029841690,-250.0,0.00017899,3]
[406647592,1772029841699,-500.0,0.00017899,3]
[406647593,1772029841709,-369.26331219,0.00017899,3]
[406647594,1772029841719,-500.0,0.00017899,3]
[406647595,1772029841728,-693.3919763,0.00017899,3]
[406647596,1772029841740,-719.04747942,0.00017899,3]
[406647597,1772029841749,-151.0,0.00017899,3]
[406647598,1772029841758,-745.65223616,0.00017899,3]
[406647599,1772029841768,-151.0,0.00017899,3]
[406647600,1772029841777,-773.2413689,0.00017899,3]
[406647601,1772029841787,-151.0,0.00017899,3]
[406647602,1772029841796,-801.85129955,0.00017899,3]
[406647603,1772029841806,-151.0,0.00017899,3]
[406647604,1772029841815,-500.0,0.00017899,3]
[406647605,1772029841825,-831.51979763,0.00017899,3]
[406647606,1772029841837,-151.0,0.00017899,3]
[406647607,1772029841846,-500.0,0.00017899,3]
[406647608,1772029841855,-862.28603014,0.00017899,3]
[406647609,1772029841865,-500.0,0.00017899,3]
[406647610,1772029841874,-151.0,0.00017899,3]
[406647611,1772029841884,-894.19061326,0.00017899,3]
[406647612,1772029841893,-500.0,0.00017899,3]
[406647613,1772029841903,-151.0,0.00017899,3]
[406647614,1772029841912,-927.27566595,0.00017899,3]
[406647615,1772029841922,-500.0,0.00017899,3]
[406647616,1772029841932,-151.0,0.00017899,3]
[406647617,1772029841941,-961.58486559,0.00017899,3]
[406647618,1772029841950,-500.0,0.00017899,3]
[406647619,1772029841960,-151.0,0.00017899,3]
[406647620,1772029841969,-997.16350561,0.00017899,3]
[406647621,1772029841979,-500.0,0.00017899,3]
[406647622,1772029841989,-200.0,0.00017899,3]
[406647623,1772029841999,-151.0,0.00017899,3]
[406647624,1772029842009,-500.0,0.00017899,3]
[406647625,1772029842020,-200.0,0.00017899,3]
[406647626,1772029842029,-151.0,0.00017899,3]
[406647627,1772029842039,-200.0,0.00017899,3]
[406647628,1772029842048,-500.0,0.00017899,3]
[406647629,1772029842057,-227.98817059,0.00017899,3]
[406647630,1772029842067,-250.0,0.00017899,3]
[406647631,1772029842076,-500.0,0.00017899,3]
[406647632,1772029842086,-257.42149907,0.00017899,3]
[406647633,1772029842095,-500.0,0.00017899,3]
[406647634,1772029842104,-290.26104003,0.00017899,3]
[406647635,1772029842114,-300.0,0.00017899,2]
[406647636,1772029842124,-14129.5890649,0.000179,3]
[406647637,1772029842134,-295.729192,0.000179,2]
[406647638,1772029842144,-15535.6527224,0.000179,2]
[406647639,1772029842154,-12830.32581828,0.000179,2]
[406647640,1772029842163,-604.78013772,0.000179,3]
[406647641,1772029842174,-7359.58261602,0.000179,2]
[406647642,1772029842183,-45423.16998971,0.000179,2]
[406647643,1772029842192,-805.97400756,0.000179,2]
[406647644,1772029842202,-16189.2348514,0.000179,2]
[406647645,1772029842212,-442.0,0.00017918,2]
[406647646,1772029842221,-388.0,0.00017968,2]
[406647647,1772029842230,-442.0,0.00017972,2]
[406647648,1772029842241,-552.2702734,0.00017981,2]
[406647649,1772029842250,-500.0,0.00017986,2]
[406647650,1772029842259,-500.0,0.00017986,2]
[406647651,1772029842269,-300.0,0.0001799,2]
[406647652,1772029842278,-300.0,0.0001799,2]
[406647653,1772029842287,-300.0,0.0001799,2]
[406647654,1772029842299,-666.0,0.0001799,2]
[406647655,1772029842308,-300.0,0.0001799,2]
[406647656,1772029842318,-300.0,0.0001799,2]
[406647657,1772029842328,-217.3,0.0001799,8]
[406647658,1772029842338,-647.27368302,0.0001799,2]
[406647659,1772029842347,-552.2702734,0.0001799,2]
[406647660,1772029842357,-552.2702734,0.0001799,2]
[406647661,1772029842368,-2517.9225212,0.00017991,2]
[406647662,1772029842378,-3406.1682469,0.00017991,2]